[Event "Walton Rating Tournament 2023"]
[Site "Dhaka"]
[Date "2024.01.01"]
[Round "4.1"]
[White "Rahman, Syed Mahfuzur"]
[Black "Zia, Tahsin Tajwar"]
[Result "1/2-1/2"]
[ECO "D02"]
[WhiteElo "2088"]
[BlackElo "2303"]
[Annotator "RC"]
[PlyCount "123"]
[EventDate "2023.12.30"]
[EventType "swiss"]
[EventCountry "BAN"]
[SourceTitle "playchess.com"]
[Source "ChessBase"]
[SourceQuality "1"]
[TimeControl "5400+30"]

1. d4 {[%emt 0:34:27]} Nf6 {[%emt 0:02:11]} 2. Nf3 {[%emt 0:00:12]} e6 {[%emt 0:00:23]} 3. g3 {[%emt 0:00:20]} d5 {[%emt 0:00:26]} 4. Bg2 {[%emt 0:00:02]} Bd6 {[%emt 0:00:15]} 5. O-O {[%emt 0:00:04]} O-O {[%emt 0:00:08]} 6. c4 {[%emt 0:00:42]} h6 {[%emt 0:00:28]} 7. Qc2 {[%emt 0:03:01]} Nc6 {[%emt 0:01:28]} 8. a3 {[%emt 0:03:55]} Re8 {[%emt 0:00:45]} 9. c5 {[%emt 0:02:33]} Bf8 {[%emt 0:00:20]} 10. b4 {[%emt 0:00:08]} e5 {[%emt 0:03:01]} 11. dxe5 {[%emt 0:01:04]} Nxe5 {[%emt 0:00:23]} 12. Nxe5 {[%emt 0:04:20]} Rxe5 {[%emt 0:00:03]} 13. Bb2 {[%emt 0:00:07]} Bf5 {[%emt 0:03:07]} 14. Qd2 {[%emt 0:00:28]} Re6 {[%emt 0:00:18]} 15. Nc3 {[%emt 0:01:35]} c6 {[%emt 0:00:15]} 16. Rfe1 {[%emt 0:05:06]} Qe7 {[%emt 0:07:18]} 17. e3 {[%emt 0:03:02]} Ne4 {[%emt 0:10:25]} 18. Nxe4 {[%emt 0:02:39]} dxe4 {[%emt 0:00:31]} 19. h3 {[%emt 0:01:28]} Qg5 {[%emt 0:02:19]} 20. Qe2 {[%emt 0:05:08]} h5 {[%emt 0:00:51]} 21. Rad1 {[%emt 0:05:51]} Rae8 {[%emt 0:21:04]} 22. Rd7 {[%emt 0:04:13]} R6e7 {[%emt 0:02:24]} 23. Rxe7 {[%emt 0:03:07]} Rxe7 {[%emt 0:04:32]} 24. Rd1 {[%emt 0:00:22]} h4 {[%emt 0:05:43]} 25. g4 {[%emt 0:00:47]} Bg6 {[%emt 0:00:15]} 26. Qc4 {[%emt 0:01:53]} Re6 {[%emt 0:02:32]} 27. Rd7 {[%emt 0:01:39]} b5 {[%emt 0:07:06]} 28. Qd4 {[%emt 0:06:50]} Re7 {[%emt 0:00:09]} 29. Bc3 {[%emt 0:03:22]} f5 {[%emt 0:02:04]} 30. Rxe7 {[%emt 0:01:41]} Qxe7 {[%emt 0:00:07]} 31. gxf5 {[%emt 0:03:29]} Bxf5 {[%emt 0:00:30]} 32. Qe5 {[%emt 0:00:02]} Qxe5 {[%emt 0:14:04]} 33. Bxe5 {[%emt 0:00:02]} a6 {[%emt 0:00:23]} 34. f3 {[%emt 0:03:08]} exf3 {[%emt 0:04:29]} 35. Bxf3 {[%emt 0:00:02]} Bd7 {[%emt 0:00:09]} 36. Bg2 {[%emt 0:00:43]} Kf7 {[%emt 0:00:41]} 37. Kf2 {[%emt 0:00:09]} Be7 {[%emt 0:00:17]} 38. Kf3 {[%emt 0:00:23]} g5 {[%emt 0:01:03]} 39. Ke4 {[%emt 0:00:59]} Kg6 {[%emt 0:02:17]} 40. Kd4 {[%emt 0:00:51]} Kf7 {[%emt 0:00:07]} 41. Bd6 {[%emt 0:00:31]} Bd8 {[%emt 0:01:09]} 42. Be5 {[%emt 0:00:26]} Be7 {[%emt 0:00:51]} 43. Bd6 {[%emt 0:00:15]} Bf6+ {[%emt 0:00:21]} 44. Be5 {[%emt 0:00:04]} Ke6 {[%emt 0:01:59]} 45. Bxf6 {[%emt 0:00:10]} Kxf6 {[%emt 0:00:01]} 46. e4 {[%emt 0:00:38]} Ke7 {[%emt 0:00:25]} 47. e5 {[%emt 0:01:25]} Kd8 {[%emt 0:00:07]} 48. Ke4 {[%emt 0:00:34]} Kc7 {[%emt 0:01:04]} 49. Bf1 {[%emt 0:00:26]} Be6 {[%emt 0:00:35]} 50. Kf3 {[%emt 0:00:21]} Kd7 {[%emt 0:01:04]} 51. Ke4 {[%emt 0:00:06]} Ke7 {[%emt 0:00:26]} 52. Kd4 {[%emt 0:00:58]} g4 {[%emt 0:00:50]} 53. hxg4 {[%emt 0:00:12]} Bxg4 {[%emt 0:00:02]} 54. Bg2 {[%emt 0:00:55]} Kd7 {[%emt 0:00:22]} 55. Ke3 {[%emt 0:00:28]} h3 {[%emt 0:00:41]} 56. Be4 {[%emt 0:00:16]} Be6 {[%emt 0:01:28]} 57. Kf2 {[%emt 0:00:17]} Bd5 {[%emt 0:00:30]} 58. Bf5+ {[%emt 0:00:14]} Be6 {[%emt 0:00:01]} 59. Be4 {[%emt 0:00:12]} Bd5 {[%emt 0:00:05]} 60. Bf5+ {[%emt 0:00:15]} Be6 {[%emt 0:00:00]} 61. Be4 {[%emt 0:00:14]} Bd5 {[%emt 0:03:17]} 62. Bf5+ {[%emt 0:00:11]} 1/2-1/2

[Event "Walton Rating Tournament 2023"]
[Site "Dhaka"]
[Date "2024.01.01"]
[Round "4.2"]
[White "Swarnavo Choudhury"]
[Black "Subrota, Biswas"]
[Result "0-1"]
[ECO "A81"]
[WhiteElo "2056"]
[BlackElo "2223"]
[Annotator "ChessBase"]
[PlyCount "92"]
[EventDate "2023.12.30"]
[EventType "swiss"]
[EventCountry "BAN"]
[SourceTitle "playchess.com"]
[Source "ChessBase"]
[SourceQuality "1"]
[TimeControl "5400+30"]

1. d4 {[%emt 0:00:04]} f5 {[%emt 0:00:40]} 2. Nf3 {[%emt 0:00:12]} g6 {[%emt 0:00:03]} 3. g3 {[%emt 0:00:04]} Bg7 {[%emt 0:00:04]} 4. Bg2 {[%emt 0:00:04]} Nf6 {[%emt 0:00:08]} 5. O-O {[%emt 0:00:07]} d6 {[%emt 0:00:06]} 6. c3 {[%emt 0:00:23]} O-O {[%emt 0:00:15]} 7. Nbd2 {[%emt 0:00:03]} Nc6 {[%emt 0:00:50]} 8. Qb3+ {[%emt 0:06:12]} Kh8 {[%emt 0:01:17]} 9. Ng5 {[%emt 0:03:55]} d5 {[%emt 0:00:31]} 10. f4 {[%emt 0:02:06]} b6 {[%emt 0:00:48]} 11. e3 {[%emt 0:01:48]} Qd6 {[%emt 0:00:51]} 12. Ngf3 {[%emt 0:01:50]} Na5 {[%emt 0:01:19]} 13. Qd1 {[%emt 0:00:46]} c5 {[%emt 0:06:52]} 14. Ne5 {[%emt 0:01:51]} Ne4 {[%emt 0:03:28]} 15. Nxe4 {[%emt 0:04:20]} dxe4 {[%emt 0:00:51]} 16. b3 {[%emt 0:00:46]} Ba6 {[%emt 0:02:01]} 17. Re1 {[%emt 0:04:28]} Qc7 {[%emt 0:05:48]} 18. Bb2 {[%emt 0:01:44]} Nc6 {[%emt 0:04:23]} 19. Rc1 {[%emt 0:05:24]} Rad8 {[%emt 0:01:19]} 20. Qc2 {[%emt 0:00:59]} Nxe5 {[%emt 1:08:56]} 21. fxe5 {[%emt 0:00:36]} Bd3 {[%emt 0:00:00]} 22. Qf2 {[%emt 0:01:09]} c4 {[%emt 0:00:00]} 23. b4 {[%emt 0:00:41]} g5 {[%emt 0:00:00]} 24. Ra1 {[%emt 0:02:25]} Rf7 {[%emt 0:00:00]} 25. Bc1 {[%emt 0:01:09]} Bh6 {[%emt 0:00:00]} 26. Bf1 {[%emt 0:04:21]} Rdf8 {[%emt 0:00:00]} 27. Bxd3 {[%emt 0:01:51]} cxd3 {[%emt 0:00:00]} 28. Bd2 {[%emt 0:00:04]} f4 {[%emt 0:00:00]} 29. Rf1 {[%emt 0:04:03]} Qc4 {[%emt 0:00:00]} 30. a4 {[%emt 0:02:00]} Qe6 {[%emt 0:00:00]} 31. Rae1 {[%emt 0:05:01]} fxg3 {[%emt 0:00:00]} 32. Qxg3 {[%emt 0:00:31]} Rf3 {[%emt 0:00:00]} 33. Rxf3 {[%emt 0:01:05]} Rxf3 {[%emt 0:00:00]} 34. Qg2 {[%emt 0:00:14]} g4 {[%emt 0:00:00]} 35. c4 {[%emt 0:04:33]} Bg5 {[%emt 0:00:00]} 36. d5 {[%emt 0:01:53]} Qxe5 {[%emt 0:00:00]} 37. Qxg4 {[%emt 0:00:17]} Rf8 {[%emt 0:00:00]} 38. Kh1 {[%emt 0:10:28]} Rf2 {[%emt 0:00:00]} 39. Qg3 {[%emt 0:00:18]} Qxg3 {[%emt 0:00:00]} 40. Bc3+ {[%emt 0:00:02]} Bf6 {[%emt 0:00:00]} 41. Bxf6+ {[%emt 0:00:06]} exf6 {[%emt 0:00:00]} 42. hxg3 {[%emt 0:00:03]} d2 {[%emt 0:00:00]} 43. Rd1 {[%emt 0:00:18]} Re2 {[%emt 0:00:00]} 44. Kg1 {[%emt 0:01:36]} Re1+ {[%emt 0:00:00]} 45. Kf2 {[%emt 0:00:01]} Rxd1 {[%emt 0:00:00]} 46. Ke2 {[%emt 0:00:01]} Rc1 {[%emt 0:00:00]} 0-1

[Event "Walton Rating Tournament 2023"]
[Site "Dhaka"]
[Date "2024.01.01"]
[Round "4.3"]
[White "Mohammad Minhaz Uddin"]
[Black "Shawket Bin, Osman Shaon"]
[Result "1-0"]
[ECO "C68"]
[WhiteElo "2221"]
[BlackElo "2030"]
[Annotator "RC"]
[PlyCount "73"]
[EventDate "2023.12.30"]
[EventType "swiss"]
[EventCountry "BAN"]
[SourceTitle "playchess.com"]
[Source "ChessBase"]
[SourceQuality "1"]
[TimeControl "5400+30"]

1. e4 {[%emt 0:00:03]} e5 {[%emt 0:35:45]} 2. Nf3 {[%emt 0:00:07]} Nc6 {[%emt 0:00:03]} 3. Bb5 {[%emt 0:00:13]} a6 {[%emt 0:00:06]} 4. Bxc6 {[%emt 0:00:07]} dxc6 {[%emt 0:00:05]} 5. O-O {[%emt 0:00:10]} Bg4 {[%emt 0:01:15]} 6. d3 {[%emt 0:00:06]} Bd6 {[%emt 0:03:03]} 7. Be3 {[%emt 0:00:51]} Ne7 {[%emt 0:04:04]} 8. Nbd2 {[%emt 0:02:12]} Ng6 {[%emt 0:01:23]} 9. h3 {[%emt 0:00:49]} h5 {[%emt 0:01:50]} 10. Re1 {[%emt 0:04:15]} Bxf3 {[%emt 0:01:36]} 11. Nxf3 {[%emt 0:00:59]} Qe7 {[%emt 0:00:26]} 12. c3 {[%emt 0:08:34]} O-O-O {[%emt 0:01:47]} 13. b4 {[%emt 0:00:07]} Nh4 {[%emt 0:04:03]} 14. Nxh4 {[%emt 0:01:08]} Qxh4 {[%emt 0:00:02]} 15. a4 {[%emt 0:04:06]} b6 {[%emt 0:01:20]} 16. Qb3 {[%emt 0:11:32]} Qe7 {[%emt 0:05:15]} 17. Reb1 {[%emt 0:09:19]} g5 {[%emt 0:02:39]} 18. c4 {[%emt 0:21:05]} c5 {[%emt 0:03:21]} 19. bxc5 {[%emt 0:01:24]} Bxc5 {[%emt 0:00:14]} 20. Bxc5 {[%emt 0:06:48]} Qxc5 {[%emt 0:00:09]} 21. a5 {[%emt 0:00:02]} Rh6 {[%emt 0:00:19]} 22. axb6 {[%emt 0:00:02]} Rxb6 {[%emt 0:00:18]} 23. Qd1 {[%emt 0:00:29]} f6 {[%emt 0:01:45]} 24. Rxb6 {[%emt 0:01:24]} Qxb6 {[%emt 0:00:40]} 25. Qxh5 {[%emt 0:17:04]} Rxd3 {[%emt 0:00:30]} 26. c5 {[%emt 0:00:03]} Qc6 {[%emt 0:14:36]} 27. Qg4+ {[%emt 0:01:01]} Kd8 {[%emt 0:02:29]} 28. Qf5 {[%emt 0:01:04]} Ke7 {[%emt 0:02:21]} 29. Qh7+ {[%emt 0:00:50]} Kf8 {[%emt 0:01:30]} 30. Kh2 {[%emt 0:01:41]} Rd8 {[%emt 0:03:33]} 31. f3 {[%emt 0:04:42]} Rd2 {[%emt 0:03:21]} 32. h4 {[%emt 0:00:48]} Qb5 {[%emt 0:02:28]} 33. hxg5 {[%emt 0:02:04]} fxg5 {[%emt 0:01:36]} 34. Qf5+ {[%emt 0:00:50]} Ke8 {[%emt 0:00:07]} 35. Qxe5+ {[%emt 0:00:09]} Kd7 {[%emt 0:01:20]} 36. Qxg5 {[%emt 0:00:36]} Qb2 {[%emt 0:00:18]} 37. Rxa6 {[%emt 0:00:30]} 1-0

[Event "Walton Rating Tournament 2023"]
[Site "Dhaka"]
[Date "2024.01.01"]
[Round "4.5"]
[White "Sajidul, Haque"]
[Black "Ahmed, Sheikh Nasir"]
[Result "1/2-1/2"]
[ECO "A47"]
[WhiteElo "1875"]
[BlackElo "2193"]
[Annotator "RC"]
[PlyCount "30"]
[EventDate "2023.12.30"]
[EventType "swiss"]
[EventCountry "BAN"]
[SourceTitle "playchess.com"]
[Source "ChessBase"]
[SourceQuality "1"]
[TimeControl "5400+30"]

1. d4 {[%emt 0:01:30]} Nf6 {[%emt 0:00:14]} 2. Nf3 {[%emt 0:00:35]} e6 {[%emt 0:00:33]} 3. Bf4 {[%emt 0:00:06]} c5 {[%emt 0:00:22]} 4. e3 {[%emt 0:00:12]} Be7 {[%emt 0:01:02]} 5. h3 {[%emt 0:03:11]} O-O {[%emt 0:00:58]} 6. Nbd2 {[%emt 0:00:05]} b6 {[%emt 0:00:31]} 7. c3 {[%emt 0:00:18]} Bb7 {[%emt 0:00:23]} 8. Bd3 {[%emt 0:00:17]} cxd4 {[%emt 0:00:22]} 9. exd4 {[%emt 0:00:39]} d6 {[%emt 0:00:20]} 10. O-O {[%emt 0:01:13]} Re8 {[%emt 0:00:29]} 11. Re1 {[%emt 0:00:43]} Nbd7 {[%emt 0:00:46]} 12. Qc2 {[%emt 0:01:51]} Nf8 {[%emt 0:01:19]} 13. Bb5 {[%emt 0:03:01]} N8d7 {[%emt 0:00:30]} 14. Bd3 {[%emt 0:01:53]} Nf8 {[%emt 0:05:18]} 15. Bb5 {[%emt 0:00:11]} N8d7 {[%emt 0:00:07]} 1/2-1/2

[Event "Walton Rating Tournament 2023"]
[Site "Dhaka"]
[Date "2024.01.02"]
[Round "5.2"]
[White "Sakline Mostafa, Sajid"]
[Black "Mohammad Minhaz Uddin"]
[Result "1/2-1/2"]
[ECO "E11"]
[WhiteElo "2110"]
[BlackElo "2221"]
[Annotator "RC"]
[PlyCount "110"]
[EventDate "2023.12.30"]
[EventType "swiss"]
[EventCountry "BAN"]
[SourceTitle "playchess.com"]
[Source "ChessBase"]
[SourceQuality "1"]
[TimeControl "5400+30"]

1. d4 {[%emt 0:00:04]} Nf6 {[%emt 0:00:05]} 2. c4 {[%emt 0:00:06]} e6 {[%emt 0:00:02]} 3. Nf3 {[%emt 0:00:07]} Bb4+ {[%emt 0:00:07]} 4. Nbd2 {[%emt 0:00:08]} d5 {[%emt 0:03:27]} 5. a3 {[%emt 0:00:23]} Be7 {[%emt 0:00:03]} 6. g3 {[%emt 0:01:03]} a5 {[%emt 0:02:13]} 7. Bg2 {[%emt 0:06:11]} O-O {[%emt 0:01:19]} 8. O-O {[%emt 0:00:45]} b6 {[%emt 0:00:36]} 9. cxd5 {[%emt 0:02:47]} exd5 {[%emt 0:00:12]} 10. Qc2 {[%emt 0:01:23]} Bb7 {[%emt 0:04:43]} 11. b3 {[%emt 0:02:53]} Re8 {[%emt 0:06:07]} 12. Bb2 {[%emt 0:02:30]} Bd6 {[%emt 0:06:48]} 13. Ne5 {[%emt 0:06:50]} Ra7 {[%emt 0:16:21]} 14. e3 {[%emt 0:10:50]} Nfd7 {[%emt 0:03:45]} 15. Ndf3 {[%emt 0:05:40]} Nf8 {[%emt 0:03:47]} 16. Nh4 {[%emt 0:14:34]} f6 {[%emt 0:05:16]} 17. Nd3 {[%emt 0:01:25]} g6 {[%emt 0:00:05]} 18. Bf3 {[%emt 0:07:58]} Nbd7 {[%emt 0:04:29]} 19. Ng2 {[%emt 0:00:51]} Ne6 {[%emt 0:06:38]} 20. h4 {[%emt 0:01:28]} Kg7 {[%emt 0:02:48]} 21. b4 {[%emt 0:02:05]} Qa8 {[%emt 0:05:17]} 22. b5 {[%emt 0:01:50]} a4 {[%emt 0:00:35]} 23. Bc3 {[%emt 0:03:34]} c6 {[%emt 0:00:47]} 24. bxc6 {[%emt 0:00:51]} Bxc6 {[%emt 0:00:02]} 25. Bb4 {[%emt 0:02:42]} Bb8 {[%emt 0:00:27]} 26. Rfc1 {[%emt 0:02:13]} Bb7 {[%emt 0:07:55]} 27. Qa2 {[%emt 0:00:40]} b5 {[%emt 0:00:44]} 28. Rab1 {[%emt 0:02:45]} Nb6 {[%emt 0:19:52]} 29. Bc5 {[%emt 0:01:35]} Nxc5 {[%emt 0:00:00]} 30. dxc5 {[%emt 0:02:14]} Nc4 {[%emt 0:01:00]} 31. Rxb5 {[%emt 0:00:18]} Bc6 {[%emt 0:00:00]} 32. Rbb1 {[%emt 0:01:13]} Ne5 {[%emt 0:01:00]} 33. Nxe5 {[%emt 0:01:49]} fxe5 {[%emt 0:00:00]} 34. Ne1 {[%emt 0:00:36]} Rf7 {[%emt 0:00:00]} 35. Bg2 {[%emt 0:00:26]} e4 {[%emt 0:00:00]} 36. Nc2 {[%emt 0:01:52]} Be5 {[%emt 0:00:00]} 37. Nd4 {[%emt 0:00:31]} Bxd4 {[%emt 0:00:00]} 38. exd4 {[%emt 0:00:13]} Ref8 {[%emt 0:00:00]} 39. Rf1 {[%emt 0:01:42]} Qa5 {[%emt 0:00:03]} 40. Qe2 {[%emt 0:01:39]} Qc7 {[%emt 0:01:58]} 41. Rb6 {[%emt 0:01:11]} Rf6 {[%emt 0:00:43]} 42. Qe3 {[%emt 0:02:08]} Qd7 {[%emt 0:00:33]} 43. Qg5 {[%emt 0:00:53]} h6 {[%emt 0:00:27]} 44. Qe3 {[%emt 0:00:41]} Rf3 {[%emt 0:01:17]} 45. Bxf3 {[%emt 0:06:33]} Rxf3 {[%emt 0:00:01]} 46. Qe2 {[%emt 0:01:51]} Qg4 {[%emt 0:00:01]} 47. Rxc6 {[%emt 0:01:00]} Rxg3+ {[%emt 0:00:03]} 48. fxg3 {[%emt 0:00:03]} Qxe2 {[%emt 0:00:04]} 49. Rc7+ {[%emt 0:00:20]} Kg8 {[%emt 0:00:01]} 50. Rc8+ {[%emt 0:00:38]} Kg7 {[%emt 0:00:03]} 51. Rc7+ {[%emt 0:00:04]} Kg8 {[%emt 0:00:01]} 52. Rb1 {[%emt 0:01:04]} Qe3+ {[%emt 0:00:07]} 53. Kg2 {[%emt 0:00:16]} Qf3+ {[%emt 0:00:05]} 54. Kh2 {[%emt 0:00:47]} Qf2+ {[%emt 0:00:02]} 55. Kh3 {[%emt 0:00:12]} Qf5+ {[%emt 0:00:01]} 1/2-1/2

[Event "Walton Rating Tournament 2023"]
[Site "Dhaka"]
[Date "2024.01.02"]
[Round "5.4"]
[White "Ahmed, Sheikh Nasir"]
[Black "Manon, Reja Neer"]
[Result "1/2-1/2"]
[ECO "B33"]
[WhiteElo "2193"]
[BlackElo "2243"]
[Annotator "RC"]
[PlyCount "54"]
[EventDate "2023.12.30"]
[EventType "swiss"]
[EventCountry "BAN"]
[SourceTitle "playchess.com"]
[Source "ChessBase"]
[SourceQuality "1"]
[TimeControl "5400+30"]

1. e4 {[%emt 0:00:21]} c5 {[%emt 0:02:02]} 2. Nf3 {[%emt 0:00:24]} Nc6 {[%emt 0:00:03]} 3. d4 {[%emt 0:01:24]} cxd4 {[%emt 0:00:02]} 4. Nxd4 {[%emt 0:00:09]} Nf6 {[%emt 0:00:02]} 5. Nc3 {[%emt 0:00:13]} e5 {[%emt 0:00:02]} 6. Ndb5 {[%emt 0:00:12]} d6 {[%emt 0:00:01]} 7. Bg5 {[%emt 0:00:33]} a6 {[%emt 0:00:01]} 8. Na3 {[%emt 0:00:12]} b5 {[%emt 0:00:03]} 9. Nd5 {[%emt 0:00:10]} Be7 {[%emt 0:00:06]} 10. Bxf6 {[%emt 0:00:24]} Bxf6 {[%emt 0:00:03]} 11. c3 {[%emt 0:02:43]} Bg5 {[%emt 0:00:20]} 12. Nc2 {[%emt 0:00:20]} O-O {[%emt 0:00:02]} 13. a4 {[%emt 0:04:31]} bxa4 {[%emt 0:00:13]} 14. Rxa4 {[%emt 0:00:11]} a5 {[%emt 0:00:03]} 15. Bc4 {[%emt 0:05:15]} Rb8 {[%emt 0:00:02]} 16. b3 {[%emt 0:05:26]} Kh8 {[%emt 0:00:16]} 17. O-O {[%emt 0:00:13]} f5 {[%emt 0:00:06]} 18. exf5 {[%emt 0:01:45]} Bxf5 {[%emt 0:00:02]} 19. Nce3 {[%emt 0:05:06]} Bg6 {[%emt 0:00:37]} 20. f3 {[%emt 0:11:43]} Ne7 {[%emt 0:22:45]} 21. Kh1 {[%emt 0:02:10]} Bxe3 {[%emt 0:14:51]} 22. Nxe3 {[%emt 0:00:04]} Qb6 {[%emt 0:00:16]} 23. Nd5 {[%emt 0:04:38]} Nxd5 {[%emt 0:00:04]} 24. Bxd5 {[%emt 0:00:13]} Bf7 {[%emt 0:00:03]} 25. Bxf7 {[%emt 0:07:34]} Rxf7 {[%emt 0:00:07]} 26. b4 {[%emt 0:00:20]} axb4 {[%emt 0:00:02]} 27. Rxb4 {[%emt 0:00:09]} Qc7 {[%emt 0:00:03]} 1/2-1/2

[Event "Walton Rating Tournament 2023"]
[Site "Dhaka"]
[Date "2024.01.02"]
[Round "5.5"]
[White "Anata, Choudhury"]
[Black "Rahman, Syed Mahfuzur"]
[Result "1/2-1/2"]
[ECO "B33"]
[WhiteElo "2196"]
[BlackElo "2088"]
[Annotator "RC"]
[PlyCount "70"]
[EventDate "2023.12.30"]
[EventType "swiss"]
[EventCountry "BAN"]
[SourceTitle "playchess.com"]
[Source "ChessBase"]
[SourceQuality "1"]
[TimeControl "5400+30"]

1. e4 {[%emt 0:00:04]} c5 {[%emt 0:09:05]} 2. Nf3 {[%emt 0:00:18]} Nc6 {[%emt 0:00:06]} 3. d4 {[%emt 0:00:10]} cxd4 {[%emt 0:00:05]} 4. Nxd4 {[%emt 0:00:08]} Nf6 {[%emt 1:23:14]} 5. Nc3 {[%emt 1:32:20]} e5 {[%emt 0:00:00]} 6. Ndb5 {[%emt 0:00:00]} d6 {[%emt 0:00:00]} 7. Nd5 {[%emt 0:00:00]} Nxd5 {[%emt 0:00:00]} 8. exd5 {[%emt 0:00:00]} Nb8 {[%emt 0:00:00]} 9. a4 {[%emt 0:00:00]} Be7 {[%emt 0:00:00]} 10. Be2 {[%emt 0:00:00]} O-O {[%emt 0:00:00]} 11. Bd2 {[%emt 0:00:00]} f5 {[%emt 0:00:00]} 12. a5 {[%emt 0:00:00]} Nd7 {[%emt 0:00:00]} 13. O-O {[%emt 0:00:00]} Nf6 {[%emt 0:00:00]} 14. Be3 {[%emt 0:00:00]} Bd7 {[%emt 0:00:00]} 15. Nxa7 {[%emt 0:00:00]} Qe8 {[%emt 0:00:00]} 16. c4 {[%emt 0:00:00]} f4 {[%emt 0:00:00]} 17. Bb6 {[%emt 0:00:00]} Qg6 {[%emt 0:00:00]} 18. Ra3 {[%emt 0:00:00]} e4 {[%emt 0:00:00]} 19. Kh1 {[%emt 0:00:00]} Ng4 {[%emt 0:00:00]} 20. a6 {[%emt 0:00:00]} bxa6 {[%emt 0:00:00]} 21. Nc6 {[%emt 0:00:00]} Bf6 {[%emt 0:00:00]} 22. f3 {[%emt 0:00:00]} Nxh2 {[%emt 0:00:00]} 23. Kxh2 {[%emt 0:00:00]} Qg3+ {[%emt 0:00:00]} 24. Kh1 {[%emt 0:00:00]} Bh3 {[%emt 0:00:00]} 25. gxh3 {[%emt 0:00:00]} Qxh3+ {[%emt 0:00:00]} 26. Kg1 {[%emt 0:00:00]} Qg3+ {[%emt 0:00:00]} 27. Kh1 {[%emt 0:00:00]} e3 {[%emt 0:00:00]} 28. Rxe3 {[%emt 0:00:00]} fxe3 {[%emt 0:00:00]} 29. Bxe3 {[%emt 0:00:00]} Qh3+ {[%emt 0:04:31]} 30. Kg1 {[%emt 0:00:00]} Rae8 {[%emt 0:01:27]} 31. Qd2 {[%emt 0:05:32]} Qg3+ {[%emt 0:00:18]} 32. Kh1 {[%emt 0:00:06]} Qh3+ {[%emt 0:05:15]} 33. Kg1 {[%emt 0:00:06]} Qg3+ {[%emt 0:01:26]} 34. Kh1 {[%emt 0:00:06]} Qh3+ {[%emt 0:01:26]} 35. Kg1 {[%emt 0:00:06]} Qg3+ {[%emt 0:00:24]} 1/2-1/2

[Event "Walton Rating Tournament 2023"]
[Site "Dhaka"]
[Date "2024.01.02"]
[Round "5.6"]
[White "Rahman, Ziaur"]
[Black "Sajidul, Haque"]
[Result "1-0"]
[ECO "A13"]
[WhiteElo "2436"]
[BlackElo "1875"]
[Annotator "RC"]
[PlyCount "43"]
[EventDate "2023.12.30"]
[EventType "swiss"]
[EventCountry "BAN"]
[SourceTitle "playchess.com"]
[Source "ChessBase"]
[SourceQuality "1"]
[TimeControl "5400+30"]

1. b3 {[%emt 1:31:00]} d5 {[%emt 1:00:39]} 2. Bb2 {[%emt 0:00:00]} e6 {[%emt 0:00:24]} 3. Nf3 {[%emt 0:00:00]} Nf6 {[%emt 0:00:19]} 4. e3 {[%emt 0:00:00]} Nbd7 {[%emt 0:00:14]} 5. c4 {[%emt 0:00:00]} Be7 {[%emt 0:00:39]} 6. Nc3 {[%emt 0:00:00]} b6 {[%emt 0:00:52]} 7. cxd5 {[%emt 0:00:00]} exd5 {[%emt 0:00:56]} 8. Nd4 {[%emt 0:00:00]} Bb7 {[%emt 0:01:26]} 9. Bb5 {[%emt 0:00:00]} c5 {[%emt 0:01:13]} 10. Nc6 {[%emt 0:00:00]} Qc8 {[%emt 0:00:43]} 11. Nxe7 {[%emt 0:00:00]} Kxe7 {[%emt 0:00:03]} 12. d4 {[%emt 0:00:00]} Rd8 {[%emt 0:01:06]} 13. Rc1 {[%emt 0:00:00]} Kf8 {[%emt 0:00:22]} 14. O-O {[%emt 0:00:00]} Kg8 {[%emt 0:03:03]} 15. Qe2 {[%emt 0:00:00]} Qb8 {[%emt 0:15:40]} 16. Na4 {[%emt 0:00:00]} Qd6 {[%emt 0:03:04]} 17. dxc5 {[%emt 0:00:00]} bxc5 {[%emt 0:00:31]} 18. Bxf6 {[%emt 0:00:00]} gxf6 {[%emt 0:00:15]} 19. Bxd7 {[%emt 0:00:00]} Rxd7 {[%emt 0:01:01]} 20. Nxc5 {[%emt 0:00:00]} Re7 {[%emt 0:00:19]} 21. Nxb7 {[%emt 0:00:00]} Rxb7 {[%emt 0:00:23]} 22. Qg4+ {[%emt 0:00:00]} 1-0

[Event "Walton Rating Tournament 2023"]
[Site "Dhaka"]
[Date "2024.01.03"]
[Round "6.1"]
[White "Mohammad Minhaz Uddin"]
[Black "Subrota, Biswas"]
[Result "1/2-1/2"]
[ECO "B15"]
[WhiteElo "2221"]
[BlackElo "2223"]
[Annotator "RC"]
[PlyCount "46"]
[EventDate "2023.12.30"]
[EventType "swiss"]
[EventCountry "BAN"]
[SourceTitle "playchess.com"]
[Source "ChessBase"]
[SourceQuality "1"]
[TimeControl "5400+30"]

1. e4 {[%emt 0:00:02]} c6 {[%emt 0:02:54]} 2. d4 {[%emt 0:00:03]} d5 {[%emt 0:00:42]} 3. Nc3 {[%emt 0:00:15]} dxe4 {[%emt 0:00:03]} 4. Nxe4 {[%emt 0:00:06]} Nf6 {[%emt 0:00:02]} 5. Nxf6+ {[%emt 0:00:02]} exf6 {[%emt 0:00:04]} 6. c3 {[%emt 0:00:09]} Bd6 {[%emt 0:00:02]} 7. Bd3 {[%emt 0:00:07]} O-O {[%emt 0:00:03]} 8. Qc2 {[%emt 0:00:03]} Re8+ {[%emt 0:00:03]} 9. Ne2 {[%emt 0:00:05]} h5 {[%emt 0:00:05]} 10. O-O {[%emt 0:00:06]} h4 {[%emt 0:02:30]} 11. h3 {[%emt 0:00:03]} Nd7 {[%emt 0:00:22]} 12. Bd2 {[%emt 0:00:02]} Nf8 {[%emt 0:01:31]} 13. Rae1 {[%emt 0:00:05]} g6 {[%emt 0:01:19]} 14. f4 {[%emt 0:00:48]} f5 {[%emt 0:00:06]} 15. Bc4 {[%emt 0:03:33]} Qc7 {[%emt 0:10:06]} 16. Qd1 {[%emt 0:00:04]} b5 {[%emt 0:01:20]} 17. Bb3 {[%emt 0:00:02]} Be6 {[%emt 0:17:25]} 18. Nc1 {[%emt 0:03:47]} Re7 {[%emt 0:08:26]} 19. Nd3 {[%emt 0:02:08]} Rae8 {[%emt 0:00:05]} 20. Bxe6 {[%emt 0:04:23]} Nxe6 {[%emt 0:02:23]} 21. b4 {[%emt 0:01:48]} a5 {[%emt 0:04:51]} 22. a3 {[%emt 0:00:33]} axb4 {[%emt 0:00:44]} 23. axb4 {[%emt 0:00:03]} Nf8 {[%emt 0:08:01]} 1/2-1/2